bitfinex/quotes_BTCUSD_20240810
["timestamp","ask_amount","ask_price","bid_price","bid_amount"]
[1723329936705,1.54997627,61050.0,61049.0,0.00250892]
[1723329937155,1.4941089,61050.0,61049.0,0.00250892]
[1723329937370,1.54995041,61050.0,61049.0,0.00250892]
[1723329939248,1.54998589,61050.0,61049.0,0.00250892]
[1723329941901,1.71378589,61050.0,61049.0,0.00250892]
[1723329942763,1.6579089,61050.0,61049.0,0.00250892]
[1723329943007,1.70778018,61050.0,61049.0,0.00150892]
[1723329943219,1.72378018,61050.0,61049.0,0.00250892]
[1723329943439,1.71378018,61050.0,61049.0,0.00250892]
[1723329944309,1.70478018,61050.0,61049.0,0.00150892]
[1723329944628,1.71278018,61050.0,61049.0,0.00150892]
[1723329944853,1.72578018,61050.0,61049.0,0.00250892]
[1723329946547,1.6699089,61050.0,61049.0,0.00250892]
[1723329946783,1.72576293,61050.0,61049.0,0.00250892]
[1723329949272,1.73576293,61050.0,61049.0,0.00250892]
[1723329949507,1.72576293,61050.0,61049.0,0.00250892]
[1723329950206,1.72578202,61050.0,61049.0,0.00250892]
[1723329950429,1.6699089,61050.0,61049.0,0.00250892]
[1723329950701,1.72578918,61050.0,61049.0,0.00250892]
[1723329953781,1.72574938,61050.0,61049.0,0.00250892]
[1723329954048,1.6699089,61050.0,61049.0,0.00250892]
[1723329955010,1.6799089,61050.0,61049.0,0.00250892]
[1723329955231,1.6699089,61050.0,61049.0,0.00250892]
[1723329955491,1.81665064,61050.0,61049.0,0.00250892]
[1723329956164,1.82665064,61050.0,61049.0,0.00250892]
[1723329956390,1.6999089,61050.0,61049.0,0.00250892]
[1723329956597,1.6799089,61050.0,61049.0,0.00250892]
[1723329960319,1.6699089,61050.0,61049.0,0.00250892]
[1723329962802,1.7257402,61050.0,61049.0,0.00250892]
[1723329963412,1.5619402,61050.0,61049.0,0.00250892]
[1723329964116,1.63221433,61050.0,61049.0,0.00250892]
[1723329965343,1.4852402,61050.0,61049.0,0.00250892]
[1723329966725,1.4294089,61050.0,61049.0,0.00250892]
[1723329966903,1.48538405,61050.0,61049.0,0.00250892]
[1723329970491,1.48536095,61050.0,61049.0,0.00250892]
[1723329971057,1.48536419,61050.0,61049.0,0.00250892]
[1723329971558,1.56376419,61050.0,61049.0,0.00250892]
[1723329972343,1.64436419,61050.0,61049.0,0.00250892]
[1723329973185,1.65436419,61050.0,61049.0,0.00250892]
[1723329973384,1.64436419,61050.0,61049.0,0.00250892]
[1723329977732,1.5884089,61050.0,61049.0,0.00250892]
[1723329978030,1.64447562,61050.0,61049.0,0.00250892]
[1723329979114,1.64447562,61050.0,61049.0,0.023396]
[1723329979918,1.56387562,61050.0,61049.0,0.023396]
[1723329981159,1.48547562,61050.0,61049.0,0.023396]
[1723329981366,1.48523763,61050.0,61049.0,0.023396]
[1723329981567,1.48518359,61050.0,61049.0,0.023396]
[1723329983196,1.48518359,61050.0,61049.0,0.00250892]
[1723329986855,1.26138359,61050.0,61049.0,0.00250892]
[1723329987685,1.4084505,61050.0,61049.0,0.08730892]
[1723329987894,0.6046505,61050.0,61049.0,0.08730892]
[1723329988087,0.45758359,61050.0,61049.0,0.08730892]
[1723329988488,0.45712921,61050.0,61049.0,0.08730892]
[1723329988712,0.62092921,61050.0,61049.0,0.08730892]
[1723329990012,0.62092921,61050.0,61049.0,0.08520892]
[1723329991805,0.62102739,61050.0,61049.0,0.08520892]
[1723329992312,0.62102992,61050.0,61049.0,0.08520892]
[1723329995529,0.621004,61050.0,61049.0,0.08520892]
[1723329995874,0.62100401,61050.0,61049.0,0.00250892]
[1723329997404,0.21148909,61050.0,61049.0,0.00250892]
[1723329998792,0.15603994,61050.0,61049.0,0.00250892]
[1723329998993,0.21153721,61050.0,61049.0,0.00250892]
[1723329999194,0.29343721,61050.0,61049.0,0.00250892]
[1723330000602,0.45723721,61050.0,61049.0,0.00250892]
[1723330002166,0.29343721,61050.0,61049.0,0.00250892]
[1723330002507,0.29337256,61050.0,61049.0,0.00250892]
[1723330003154,0.29337212,61050.0,61049.0,0.00250892]
[1723330003918,0.23793994,61050.0,61049.0,0.00250892]
[1723330004333,0.15603994,61050.0,61049.0,0.00250892]
[1723330004770,0.15106597,61050.0,61049.0,0.32871192]
[1723330004978,0.15106597,61050.0,61049.0,0.79237211]
[1723330004979,0.04322294,61050.0,61049.0,0.79237211]
[1723330005544,0.02777796,61050.0,61049.0,0.79237211]
[1723330005928,0.01377796,61050.0,61049.0,1.11898903]
[1723330006135,0.01377796,61050.0,61049.0,1.12898903]
[1723330006328,0.00077796,61050.0,61049.0,1.12798903]
[1723330006508,0.01377796,61050.0,61049.0,1.12898903]
[1723330007035,0.00077796,61050.0,61049.0,1.15098903]
[1723330007439,0.00177796,61050.0,61049.0,1.15817203]
[1723330007663,0.00177796,61050.0,61049.0,1.16717203]
[1723330008023,0.000832,61064.0,61063.0,0.573177]
[1723330008370,0.000832,61064.0,61063.0,0.651577]
[1723330009678,0.000832,61064.0,61063.0,0.653577]
[1723330010440,0.000832,61064.0,61063.0,0.655577]
[1723330011232,0.010649,61064.0,61063.0,0.491812]
[1723330011448,0.011649,61064.0,61063.0,0.491812]
[1723330011570,0.02711337,61064.0,61063.0,0.491812]
[1723330013044,0.02611337,61064.0,61063.0,0.491812]
[1723330013219,0.02711337,61064.0,61063.0,0.491812]
[1723330013778,0.02611337,61064.0,61063.0,0.491812]
[1723330013986,0.02711337,61064.0,61063.0,0.491812]
[1723330024112,0.09291337,61064.0,61063.0,0.413412]
[1723330024320,0.09291337,61064.0,61063.0,0.249647]
[1723330024724,0.09291337,61064.0,61063.0,0.247647]
[1723330025410,0.09291337,61064.0,61063.0,0.245647]
[1723330026059,0.09091337,61064.0,61063.0,0.245647]
[1723330027208,0.09291337,61064.0,61063.0,0.245647]
[1723330028318,0.09091337,61064.0,61063.0,0.245647]
[1723330033109,0.09091337,61064.0,61063.0,0.409412]
[1723330033110,0.02611337,61064.0,61063.0,0.409412]
[1723330034192,0.02711337,61064.0,61063.0,0.54543403]
[1723330034414,0.010649,61064.0,61063.0,0.54543403]
[1723330035511,0.010649,61064.0,61063.0,0.62793403]
[1723330036539,0.000832,61064.0,61063.0,0.79169903]
[1723330036750,0.000832,61064.0,61063.0,0.79168249]
[1723330036956,0.000832,61064.0,61063.0,0.97849741]
[1723330037161,0.000832,61064.0,61063.0,0.84249192]
[1723330037379,0.000832,61064.0,61063.0,0.97849468]
[1723330038385,0.001832,61064.0,61063.0,0.98349468]
[1723330038803,0.001832,61064.0,61063.0,0.98549468]
[1723330039003,0.002832,61064.0,61063.0,0.99249468]
[1723330039408,0.000832,61064.0,61063.0,0.97849468]
[1723330040835,0.002832,61064.0,61063.0,0.99449468]
[1723330041441,0.001832,61064.0,61063.0,0.98649468]
[1723330041602,0.000832,61064.0,61063.0,0.97849468]
[1723330041798,0.000832,61064.0,61063.0,0.99449468]
[1723330041799,0.002832,61064.0,61063.0,0.99449468]
[1723330042026,0.002832,61064.0,61063.0,1.24175272]
[1723330042225,0.000832,61064.0,61063.0,1.2102544]
[1723330042471,0.001832,61064.0,61063.0,1.2182544]
[1723330042672,0.002832,61064.0,61063.0,1.2264374]
[1723330043324,0.002832,61064.0,61063.0,1.4092024]
[1723330043540,0.000832,61067.0,61066.0,0.672932]
[1723330043748,0.000832,61067.0,61066.0,1.69795161]
[1723330043956,0.000832,61067.0,61066.0,1.14471079]
[1723330044162,0.000832,61067.0,61066.0,2.02538573]
[1723330044521,0.000832,61067.0,61066.0,1.92292186]
[1723330044719,0.001832,61067.0,61066.0,1.93392186]
[1723330044916,0.001832,61067.0,61066.0,1.94321519]
[1723330045122,0.001832,61067.0,61066.0,1.76697676]
[1723330045339,0.001832,61067.0,61066.0,1.94621519]
[1723330045584,0.001832,61067.0,61066.0,1.76397676]
[1723330045754,0.000832,61067.0,61066.0,1.93221519]
[1723330045955,0.001832,61067.0,61066.0,1.76697676]
[1723330047346,0.000832,61067.0,61066.0,1.58301198]
[1723330047455,0.000832,61067.0,61066.0,1.59701198]
[1723330047661,0.001832,61067.0,61066.0,1.61101198]
[1723330048133,0.000832,61067.0,61066.0,1.58301199]
[1723330048370,0.001832,61067.0,61066.0,1.61101199]
[1723330048601,0.000832,61067.0,61066.0,1.59701199]
[1723330049045,0.001832,61067.0,61066.0,1.59701199]
[1723330049266,0.001832,61067.0,61066.0,1.59701109]
[1723330050369,0.001832,61067.0,61066.0,1.61101109]
[1723330051224,0.000832,61067.0,61066.0,1.52902588]
[1723330051445,0.000832,61067.0,61066.0,1.6110117]
[1723330051672,0.001832,61067.0,61066.0,1.6110117]
[1723330051895,0.000832,61067.0,61066.0,1.5970117]
[1723330052117,0.000832,61067.0,61066.0,1.6110117]
[1723330052322,0.001832,61067.0,61066.0,1.4282547]
[1723330052745,0.001832,61067.0,61066.0,1.36026888]
[1723330054121,0.001832,61067.0,61066.0,1.37008588]
[1723330054560,0.001832,61067.0,61066.0,1.24329725]
[1723330054759,0.001832,61067.0,61066.0,1.36009644]
[1723330054971,0.001832,61067.0,61066.0,1.36027944]
[1723330055185,0.001832,61067.0,61066.0,1.37927944]
[1723330056348,0.001832,61067.0,61066.0,1.36027944]
[1723330056741,0.001832,61067.0,61066.0,1.27777944]
[1723330056946,0.001832,61067.0,61066.0,1.27759644]
[1723330057216,0.141632,61067.0,61066.0,0.90094611]
[1723330057435,0.141632,61067.0,61066.0,0.98154611]
[1723330057656,0.141632,61067.0,61066.0,0.84556392]
[1723330057985,0.140632,61067.0,61066.0,0.667749]
[1723330058191,0.140632,61067.0,61066.0,0.653749]
[1723330058395,0.141632,61067.0,61066.0,0.667749]
[1723330058592,0.141632,61067.0,61066.0,0.660749]
[1723330059098,0.142632,61067.0,61066.0,0.660749]
[1723330060806,0.142632,61067.0,61066.0,0.667749]
[1723330061996,0.142632,61067.0,61066.0,0.587149]
[1723330062160,0.142632,61067.0,61066.0,0.667749]
[1723330064253,0.142632,61067.0,61066.0,0.80375592]
[1723330065410,0.142632,61067.0,61066.0,0.667749]
[1723330065881,0.142632,61067.0,61066.0,0.503992]
[1723330066078,0.153449,61067.0,61066.0,0.503992]
[1723330066531,0.16908698,61067.0,61066.0,0.503992]
[1723330067237,0.16908698,61067.0,61066.0,0.423392]
[1723330067686,0.17108698,61067.0,61066.0,0.423392]
[1723330068644,0.16908698,61067.0,61066.0,0.416392]
[1723330068886,0.16908698,61067.0,61066.0,0.409392]
[1723330069050,0.17008698,61067.0,61066.0,0.409392]
[1723330069238,0.16908698,61067.0,61066.0,0.409392]
[1723330069630,0.17008698,61067.0,61066.0,0.489992]
[1723330070701,0.152617,61066.0,61065.0,0.0009141]
[1723330070855,0.64385546,61066.0,61065.0,0.0009141]
[1723330071062,0.49573319,61066.0,61065.0,0.0009141]
[1723330072079,0.49973319,61066.0,61065.0,0.0009141]
[1723330072301,0.50373319,61066.0,61065.0,0.0009141]
[1723330081215,0.66754811,61066.0,61065.0,0.0009141]
[1723330081836,0.66354811,61066.0,61065.0,0.0009141]
[1723330082047,0.82730511,61066.0,61065.0,0.0009141]
[1723330082394,0.83230511,61066.0,61065.0,0.0019141]
[1723330082545,0.82830511,61066.0,61065.0,0.0019141]
[1723330082743,0.82330511,61066.0,61065.0,0.0009141]
[1723330082983,0.83430511,61066.0,61065.0,0.0019141]
[1723330083951,0.84330511,61066.0,61065.0,0.0029141]
[1723330084157,0.83230511,61066.0,61065.0,0.0019141]
[1723330084576,0.67354811,61066.0,61065.0,0.0019141]
[1723330084779,0.68554811,61066.0,61065.0,0.0029141]
[1723330084999,0.84930511,61066.0,61065.0,0.0029141]
[1723330085177,0.68554811,61066.0,61065.0,0.0029141]
[1723330085857,0.84930511,61066.0,61065.0,0.0029141]
[1723330087001,1.57930511,61066.0,61065.0,0.0029141]
[1723330088485,1.84306211,61066.0,61065.0,0.0029141]
[1723330088655,1.11306211,61066.0,61065.0,0.0029141]
[1723330088856,1.16810788,61066.0,61065.0,0.0029141]
[1723330089264,1.09906211,61066.0,61065.0,0.0019141]
[1723330089529,1.15436362,61066.0,61065.0,0.0019141]
[1723330089734,1.09906211,61066.0,61065.0,0.0019141]
[1723330089940,1.15436407,61066.0,61065.0,0.0019141]
[1723330090090,1.23496407,61066.0,61065.0,0.0019141]
[1723330090753,1.23696407,61066.0,61065.0,0.0019141]
[1723330090958,1.2369977,61066.0,61065.0,0.0029141]
[1723330091161,1.8859977,61066.0,61065.0,0.0029141]
[1723330092815,1.88609787,61066.0,61065.0,0.0029141]
[1723330093623,1.64049441,61066.0,61065.0,0.0029141]
[1723330094473,1.64132541,61066.0,61065.0,0.0029141]
[1723330094612,1.80508241,61066.0,61065.0,0.0029141]
[1723330095845,1.64132541,61066.0,61065.0,0.0029141]
[1723330096297,1.74964665,61066.0,61065.0,0.0029141]
[1723330096512,1.80458645,61066.0,61065.0,0.0029141]
[1723330097156,1.64082945,61066.0,61065.0,0.0029141]
[1723330098645,1.68963148,61066.0,61065.0,0.0029141]
[1723330099499,1.64082945,61066.0,61065.0,0.0029141]
[1723330099687,1.7140325,61066.0,61065.0,0.0029141]
[1723330100040,1.71414125,61066.0,61065.0,0.0029141]
[1723330100453,1.71411305,61066.0,61065.0,0.0029141]
[1723330100832,1.87787005,61066.0,61065.0,0.0029141]
[1723330101284,1.71411305,61066.0,61065.0,0.0029141]
[1723330101700,1.73849038,61066.0,61065.0,0.0029141]
[1723330102600,1.64088631,61066.0,61065.0,0.0029141]
[1723330103060,1.73873187,61066.0,61065.0,0.0029141]
[1723330103527,1.64088631,61066.0,61065.0,0.0029141]
[1723330103757,1.73874465,61066.0,61065.0,0.0029141]
[1723330103977,1.56028631,61066.0,61065.0,0.0029141]
[1723330104226,1.64088631,61066.0,61065.0,0.0029141]
[1723330104683,1.7628914,61066.0,61065.0,0.0029141]
[1723330104905,1.64088631,61066.0,61065.0,0.0029141]
[1723330105395,1.92698399,61066.0,61065.0,0.0029141]
[1723330106348,1.80464331,61066.0,61065.0,0.0029141]
[1723330107238,1.8046298,61066.0,61065.0,0.0029141]
[1723330111925,1.74964665,61066.0,61065.0,0.0029141]
[1723330112086,1.80473556,61066.0,61065.0,0.0029141]
[1723330112495,1.95166223,61066.0,61065.0,0.0029141]
[1723330113479,1.80473556,61066.0,61065.0,0.0029141]
[1723330114550,1.80470468,61066.0,61065.0,0.0029141]
[1723330120032,1.81470468,61066.0,61065.0,0.0029141]
[1723330120511,1.97999719,61066.0,61065.0,0.0029141]
[1723330121066,1.90698387,61066.0,61065.0,0.0029141]
[1723330121702,1.75964665,61066.0,61065.0,0.0029141]
[1723330121932,1.90692965,61066.0,61065.0,0.0029141]
[1723330122111,1.92692965,61066.0,61065.0,0.0029141]
[1723330122358,1.92692963,61066.0,61065.0,0.0029141]
[1723330123478,1.92693058,61066.0,61065.0,0.0029141]
[1723330124252,2.09068758,61066.0,61065.0,0.0029141]
[1723330124487,1.92693058,61066.0,61065.0,0.0029141]
[1723330125116,1.91793058,61066.0,61065.0,0.0019141]
[1723330125231,1.77064665,61066.0,61065.0,0.0019141]
[1723330125450,1.92669457,61066.0,61065.0,0.0029141]
[1723330126075,2.09045157,61066.0,61065.0,0.0029141]
[1723330126497,2.07645157,61066.0,61065.0,0.0019141]
[1723330126954,2.09045157,61066.0,61065.0,0.0019141]
[1723330128516,1.92669457,61066.0,61065.0,0.0019141]
[1723330128931,1.92645286,61066.0,61065.0,0.0019141]
[1723330129534,1.82585286,61066.0,61065.0,0.0019141]
[1723330130099,1.81453864,61066.0,61065.0,0.0019141]
[1723330130305,1.73393864,61066.0,61065.0,0.0019141]
[1723330130441,1.98012041,61066.0,61065.0,0.0019141]
[1723330132470,1.81453864,61066.0,61065.0,0.0019141]
[1723330132672,1.98014294,61066.0,61065.0,0.0019141]
[1723330133078,1.81436084,61066.0,61065.0,0.0019141]
[1723330133253,1.97997425,61066.0,61065.0,0.0019141]
[1723330133654,1.96997425,61066.0,61065.0,0.0019141]
[1723330133858,1.64616084,61066.0,61065.0,0.0019141]
[1723330134120,1.72676084,61066.0,61065.0,0.0019141]
[1723330135709,1.89237425,61066.0,61065.0,0.0019141]
[1723330135919,1.83766006,61066.0,61065.0,0.0019141]
[1723330136066,1.89244634,61066.0,61065.0,0.0019141]
[1723330136472,1.89248934,61066.0,61065.0,0.0019141]
[1723330136692,1.72683293,61066.0,61065.0,0.0019141]
[1723330138406,1.89249426,61066.0,61065.0,0.0019141]
[1723330138809,1.72683293,61066.0,61065.0,0.0019141]
[1723330139430,1.67204665,61066.0,61065.0,0.0019141]
[1723330139633,1.72696267,61066.0,61065.0,0.0019141]
[1723330142782,1.804237,61066.0,61065.0,0.0019141]
[1723330143871,1.804237,61066.0,61065.0,0.02280118]
[1723330144585,1.96986902,61066.0,61065.0,0.02280118]
[1723330145803,1.97002234,61066.0,61065.0,0.02280118]
[1723330145970,1.80439032,61066.0,61065.0,0.02280118]
[1723330147614,1.80439032,61066.0,61065.0,0.0019141]
[1723330148320,1.92637085,61066.0,61065.0,0.0019141]
[1723330148565,1.92637085,61066.0,61050.0,0.0009152]
[1723330148566,0.258512,61051.0,61050.0,0.0009152]
[1723330148765,0.54501861,61051.0,61050.0,0.0009152]
[1723330148917,0.43794594,61051.0,61050.0,0.0009152]
[1723330149288,0.43794594,61051.0,61049.0,0.08010892]
[1723330149289,0.094717,61050.0,61049.0,0.07602412]
[1723330149490,0.21739778,61050.0,61049.0,0.07602412]
[1723330149686,0.23301615,61050.0,61049.0,0.07602412]
[1723330149893,0.11033537,61050.0,61049.0,0.07602412]
[1723330150373,0.23301948,61050.0,61049.0,0.07602412]
[1723330150574,0.39681948,61050.0,61049.0,0.07602412]
[1723330150779,0.40881948,61050.0,61049.0,0.07702412]
[1723330151080,0.40881037,61050.0,61049.0,0.07702412]
[1723330151285,0.39681037,61050.0,61049.0,0.07602412]
[1723330151717,0.40981037,61050.0,61049.0,0.07602412]
[1723330152353,0.28713537,61050.0,61049.0,0.07602412]
[1723330152561,0.29513537,61050.0,61049.0,0.07602412]
[1723330152978,0.28713537,61050.0,61049.0,0.07602412]
[1723330153388,0.29713537,61050.0,61049.0,0.07602412]
[1723330155341,0.41980118,61050.0,61049.0,0.07602412]
[1723330156049,0.40980118,61050.0,61049.0,0.07602412]
[1723330156248,0.41880118,61050.0,61049.0,0.07602412]
[1723330156840,0.29613537,61050.0,61049.0,0.07602412]
[1723330157039,0.40580118,61050.0,61049.0,0.07602412]
[1723330157445,0.081903,61048.0,61045.0,0.077]
[1723330157644,0.07359721,61046.0,61045.0,0.077]
[1723330157849,0.07659721,61046.0,61045.0,0.077]
[1723330158008,0.0922021,61046.0,61045.0,0.077]
[1723330159432,0.16579016,61046.0,61045.0,0.077]
[1723330159643,0.09219295,61046.0,61045.0,0.077]
[1723330159863,0.09719295,61046.0,61045.0,0.077]
[1723330160487,0.10419295,61046.0,61045.0,0.077]
[1723330160993,0.09719295,61046.0,61045.0,0.077]
[1723330161529,0.10319295,61046.0,61045.0,0.077]
[1723330163300,0.02960489,61046.0,61045.0,0.0779152]
[1723330163716,0.10319295,61046.0,61045.0,0.0779152]
[1723330164206,0.02960489,61046.0,61045.0,0.0779152]
[1723330167345,0.07864046,61046.0,61045.0,0.0779152]
[1723330167960,0.02960489,61046.0,61045.0,0.0779152]
[1723330172304,0.03942189,61046.0,61045.0,0.0779152]
[1723330173246,0.02842189,61046.0,61045.0,0.0779152]
[1723330173444,0.03542189,61046.0,61045.0,0.0009152]
[1723330173690,0.10042189,61046.0,61045.0,0.0009152]
[1723330174450,0.10642189,61046.0,61045.0,0.0009152]
[1723330175964,0.10042189,61046.0,61045.0,0.0009152]
[1723330176429,0.09842189,61046.0,61045.0,0.0009152]
[1723330176631,0.10442189,61046.0,61045.0,0.0009152]
[1723330176866,0.09842189,61046.0,61045.0,0.0009152]
[1723330177255,0.10642189,61046.0,61045.0,0.0009152]
[1723330177688,0.10142189,61046.0,61045.0,0.0009152]
[1723330178113,0.10742189,61046.0,61045.0,0.0009152]
[1723330178909,0.18932689,61046.0,61045.0,0.0009152]
[1723330180526,0.51238827,61046.0,61045.0,0.0009152]
[1723330180733,1.28179236,61046.0,61045.0,0.0009152]
[1723330180938,1.15917792,61046.0,61045.0,0.0009152]
[1723330181332,1.15317792,61046.0,61045.0,0.0009152]
[1723330181557,1.15217792,61046.0,61045.0,0.0009152]
[1723330181772,1.31031525,61046.0,61045.0,0.0009152]
[1723330182105,1.30303212,61046.0,61045.0,0.0009152]
[1723330182528,1.31303212,61046.0,61045.0,0.0009152]
[1723330183135,1.22018566,61046.0,61045.0,0.0009152]
[1723330183336,1.08504833,61046.0,61045.0,0.0009152]
[1723330183720,1.06304833,61046.0,61045.0,0.0009152]
[1723330183939,1.07604833,61046.0,61045.0,0.0009152]
[1723330184362,1.08704833,61046.0,61045.0,0.0009152]
[1723330185341,1.08698511,61046.0,61045.0,0.0009152]
[1723330185877,1.08698651,61046.0,61045.0,0.0009152]
[1723330189165,1.03197181,61046.0,61045.0,0.0009152]
[1723330189413,1.08694699,61046.0,61045.0,0.0009152]
[1723330190155,0.92313699,61046.0,61045.0,0.0009152]
[1723330190345,0.99066949,61046.0,61045.0,0.0009152]
[1723330190779,1.69326949,61046.0,61045.0,0.0009152]
[1723330192592,0.91326949,61046.0,61045.0,0.0009152]
[1723330193786,0.9132947,61046.0,61045.0,0.0009152]
[1723330194573,0.79076181,61046.0,61045.0,0.0009152]
[1723330194802,0.88879584,61046.0,61045.0,0.0009152]
[1723330194974,0.79076181,61046.0,61045.0,0.0009152]
[1723330195183,0.86429162,61046.0,61045.0,0.0009152]
[1723330195869,0.79076181,61046.0,61045.0,0.0009152]
[1723330196270,0.88879584,61046.0,61045.0,0.0009152]
[1723330196582,0.79076181,61046.0,61045.0,0.0009152]
[1723330197004,0.86429433,61046.0,61045.0,0.0009152]
[1723330197181,0.88879584,61046.0,61045.0,0.0009152]
[1723330197579,0.8888057,61046.0,61045.0,0.0009152]
[1723330197788,0.79076181,61046.0,61045.0,0.0009152]
[1723330198021,0.8888057,61046.0,61045.0,0.0009152]
[1723330198214,0.79076181,61046.0,61045.0,0.0009152]
[1723330198900,0.8888057,61046.0,61045.0,0.0009152]
[1723330199335,0.79076181,61046.0,61045.0,0.0009152]
[1723330199567,0.46313689,61046.0,61045.0,0.0009152]
[1723330201339,0.5366778,61046.0,61045.0,0.0009152]
[1723330203681,0.53666395,61046.0,61045.0,0.0009152]
[1723330205003,0.46313689,61046.0,61045.0,0.0009152]
[1723330205119,0.56118643,61046.0,61045.0,0.0009152]
[1723330206723,0.49618643,61046.0,61045.0,0.0834152]
[1723330206900,1.04731135,61046.0,61045.0,0.0009152]
[1723330207452,0.94926181,61046.0,61045.0,0.0009152]
[1723330207910,0.86866181,61046.0,61045.0,0.0009152]
[1723330208321,0.96668719,61046.0,61045.0,0.0009152]
[1723330208543,1.04728719,61046.0,61045.0,0.0009152]
[1723330208760,1.00442377,61046.0,61045.0,0.0009152]
[1723330208962,1.16823377,61046.0,61045.0,0.0009152]
[1723330210151,1.16806363,61046.0,61045.0,0.0009152]
[1723330212575,1.76806363,61046.0,61045.0,0.0009152]
[1723330213443,1.76858272,61046.0,61045.0,0.0009152]
[1723330213810,1.6047702,61046.0,61045.0,0.0009152]
[1723330214413,1.7685802,61046.0,61045.0,0.0009152]
[1723330216689,1.9485802,61046.0,61045.0,0.0009152]
[1723330217414,1.94849755,61046.0,61045.0,0.0009152]
[1723330220499,2.09549614,61046.0,61045.0,0.0009152]
[1723330220719,2.00549614,61046.0,61045.0,0.0009152]
[1723330221139,1.85849755,61046.0,61045.0,0.0009152]
[1723330221276,1.84158771,61046.0,61045.0,0.0009152]
[1723330222137,2.00539771,61046.0,61045.0,0.0009152]
[1723330222350,2.0054694,61046.0,61045.0,0.0009152]
[1723330222719,1.8416594,61046.0,61045.0,0.0009152]
[1723330224046,2.0054694,61046.0,61045.0,0.0009152]
[1723330224694,2.01014209,61046.0,61045.0,0.0009152]
[1723330224838,1.91894395,61046.0,61045.0,0.0009152]
[1723330225238,1.75513395,61046.0,61045.0,0.0009152]
[1723330227960,1.91894395,61046.0,61045.0,0.0009152]
[1723330228404,1.91881438,61046.0,61045.0,0.0009152]
[1723330228657,1.92881438,61046.0,61045.0,0.0009152]
[1723330228859,1.87307181,61046.0,61045.0,0.0009152]
[1723330229064,1.92881423,61046.0,61045.0,0.0009152]
[1723330229262,2.07598174,61046.0,61045.0,0.0009152]
[1723330229466,1.92881423,61046.0,61045.0,0.0009152]
[1723330231990,1.87307181,61046.0,61045.0,0.0009152]
[1723330232197,1.92920112,61046.0,61045.0,0.0009152]
[1723330232617,2.07637425,61046.0,61045.0,0.0009152]
[1723330233027,1.92920112,61046.0,61045.0,0.0009152]
[1723330233443,2.07637487,61046.0,61045.0,0.0009152]
[1723330233860,1.92920112,61046.0,61045.0,0.0009152]
[1723330235448,1.92926699,61046.0,61045.0,0.0009152]
[1723330236120,1.99781027,61046.0,61045.0,0.0009152]
[1723330236346,2.00781027,61046.0,61045.0,0.0009152]
[1723330236569,2.10106842,61046.0,61045.0,0.0009152]
[1723330236814,1.94192514,61046.0,61045.0,0.0009152]
[1723330237009,1.84866699,61046.0,61045.0,0.0009152]
[1723330237208,2.08382835,61046.0,61045.0,0.0009152]
[1723330237427,1.91826699,61046.0,61045.0,0.0009152]
[1723330237630,1.93226699,61046.0,61045.0,0.0009152]
[1723330238026,1.91826699,61046.0,61045.0,0.0009152]
[1723330238282,1.90526699,61046.0,61045.0,0.0009152]
[1723330238503,1.92926699,61046.0,61045.0,0.0009152]
[1723330238682,2.10741669,61046.0,61045.0,0.0009152]
[1723330238884,2.09341669,61046.0,61045.0,0.0009152]
[1723330239292,2.10756983,61046.0,61045.0,0.0009152]
[1723330239522,2.25737983,61046.0,61045.0,0.0009152]
[1723330239727,2.27137983,61046.0,61045.0,0.0009152]
[1723330239931,2.09356983,61046.0,61045.0,0.0009152]
[1723330240132,2.10756983,61046.0,61045.0,0.0009152]
[1723330240474,1.94342013,61046.0,61045.0,0.0009152]
[1723330241375,2.10898149,61046.0,61045.0,0.0009152]
[1723330241602,1.94342013,61046.0,61045.0,0.0009152]
[1723330241808,2.10898149,61046.0,61045.0,0.0009152]
[1723330242205,2.10723013,61046.0,61045.0,0.0009152]
[1723330242414,2.10737921,61046.0,61045.0,0.0009152]
[1723330242614,1.94356921,61046.0,61045.0,0.0009152]
[1723330242819,2.10737921,61046.0,61045.0,0.0009152]
[1723330243021,1.94356921,61046.0,61045.0,0.0009152]
[1723330243429,2.10737921,61046.0,61045.0,0.0009152]
[1723330244650,1.83496921,61046.0,61045.0,0.0009152]
[1723330244817,1.86296921,61046.0,61045.0,0.0009152]
[1723330245025,1.94356921,61046.0,61045.0,0.0009152]
[1723330245226,1.92956921,61046.0,61045.0,0.0009152]
[1723330245440,1.94356921,61046.0,61045.0,0.0009152]
[1723330245661,1.88707181,61046.0,61045.0,0.0009152]
[1723330245869,1.94367588,61046.0,61045.0,0.0009152]
[1723330246706,1.92967588,61046.0,61045.0,0.0009152]
[1723330247152,1.94367588,61046.0,61045.0,0.0009152]
[1723330247592,1.92967588,61046.0,61045.0,0.0009152]
[1723330247812,1.94367588,61046.0,61045.0,0.0009152]
[1723330248252,1.92967588,61046.0,61045.0,0.0009152]
[1723330248686,1.94367588,61046.0,61045.0,0.0009152]
[1723330249146,2.10782558,61046.0,61045.0,0.0009152]
[1723330249367,2.12782741,61046.0,61045.0,0.0009152]
[1723330249620,2.45720739,61046.0,61045.0,0.0009152]
[1723330249878,2.4374631,61046.0,61045.0,0.0009152]
[1723330250524,2.27189312,61046.0,61045.0,0.0009152]
[1723330250750,2.36581593,61046.0,61045.0,0.0009152]
[1723330251007,2.27189312,61046.0,61045.0,0.0009152]
[1723330251212,2.27201378,61046.0,61045.0,0.0009152]
[1723330251452,2.25801378,61046.0,61045.0,0.0009152]
[1723330252122,2.27201378,61046.0,61045.0,0.0009152]
[1723330252535,2.25801378,61046.0,61045.0,0.0009152]
[1723330252755,0.616162,61045.0,61044.0,0.0009152]
[1723330252989,1.89155635,61045.0,61044.0,0.0009152]
[1723330253215,1.90582647,61045.0,61044.0,0.0009152]
[1723330253606,2.06963947,61045.0,61044.0,0.0009152]
[1723330253782,1.90548977,61045.0,61044.0,0.0009152]
[1723330254846,2.07038177,61045.0,61044.0,0.0009152]
[1723330255064,0.739257,61035.0,61034.0,0.0009152]
[1723330255281,1.83781562,61035.0,61034.0,0.0009152]
[1723330255488,1.69061882,61035.0,61034.0,0.0009152]
[1723330255704,1.70487959,61035.0,61034.0,0.0009152]
[1723330257747,1.86871959,61035.0,61034.0,0.0009152]
[1723330257951,0.729313,61029.0,61026.0,0.0009152]
[1723330258184,1.85777314,61029.0,61026.0,0.0009152]
[1723330258412,1.87202533,61029.0,61026.0,0.0009152]
[1723330258651,1.72492701,61029.0,61026.0,0.0009152]
[1723330259308,1.73392701,61029.0,61026.0,0.0009152]
[1723330259756,1.74541087,61029.0,61026.0,0.0009152]
[1723330260564,1.73641087,61029.0,61026.0,0.0009152]
[1723330260897,1.73941087,61029.0,61026.0,0.0009152]
[1723330261159,1.75341087,61029.0,61026.0,0.0009152]
[1723330261391,1.68198011,61029.0,61026.0,0.0009152]
[1723330261602,1.73938321,61029.0,61026.0,0.0009152]
[1723330261809,1.75338321,61029.0,61026.0,0.0009152]
[1723330262127,1.72538321,61029.0,61026.0,0.0009152]
[1723330262336,1.73937177,61029.0,61026.0,0.0009152]